fUSD/lending_fUSD_20251122
["ID","MTS","AMOUNT","RATE_DAILY","PERIOD"]
[394618761,1763784632469,-151.0,0.00017332,2]
[394618762,1763784632478,-151.0,0.00017332,2]
[394618763,1763784632488,-151.0,0.00017332,2]
[394618764,1763784632498,-151.0,0.00017332,2]
[394618765,1763784632508,-151.0,0.00017332,2]
[394618766,1763784632522,-151.0,0.00017332,2]
[394618767,1763784632532,-151.0,0.00017332,2]
[394618768,1763784632542,-151.0,0.00017332,2]
[394618769,1763784632554,-151.0,0.00017332,2]
[394618770,1763784632565,-151.0,0.00017332,2]
[394618771,1763784632575,-151.0,0.00017332,2]
[394618772,1763784632585,-151.0,0.00017332,2]
[394618773,1763784632598,-151.0,0.00017332,2]
[394618774,1763784632608,-234.194098,0.00017332,2]
[394618775,1763784632619,-234.194098,0.00017332,2]
[394618776,1763784632953,-234.194098,0.00017332,2]
[394618777,1763784632977,-234.194098,0.00017332,2]
[394618778,1763784632987,-500.0,0.00017332,2]
[394618779,1763784632996,-721.12765535,0.00017332,2]
[394618780,1763784633006,-500.0,0.00017332,2]
[394618781,1763784633016,-500.0,0.00017332,2]
[394618782,1763784633025,-500.0,0.00017332,2]
[394618783,1763784633035,-500.0,0.00017332,2]
[394618784,1763784633043,-500.0,0.00017332,2]
[394618785,1763784633053,-500.0,0.00017332,2]
[394618786,1763784633063,-500.0,0.00017332,2]
[394618787,1763784633072,-500.0,0.00017332,2]
[394618788,1763784633081,-500.0,0.00017332,2]
[394618789,1763784633091,-500.0,0.00017332,2]
[394618790,1763784633100,-3000.0,0.00017332,2]
[394618791,1763784633109,-500.0,0.00017332,2]
[394618792,1763784633119,-3000.0,0.00017332,2]
[394618793,1763784633128,-3000.0,0.00017332,2]
[394618794,1763784633137,-3000.0,0.00017332,2]
[394618795,1763784633147,-3000.0,0.00017332,2]
[394618796,1763784633156,-3000.0,0.00017332,2]
[394618797,1763784633165,-1408.62508306,0.00017332,2]
[394618798,1763784633178,-1591.37491694,0.00017332,2]
[394618799,1763784633188,-3000.0,0.00017332,2]
[394618800,1763784633198,-3000.0,0.00017332,2]
[394618801,1763784633207,-3000.0,0.00017332,2]
[394618802,1763784633216,-3000.0,0.00017332,2]
[394618803,1763784633225,-151.0,0.00017342,2]
[394618804,1763784633234,-151.0,0.00017342,2]
[394618805,1763784633243,-151.0,0.00017342,2]
[394618806,1763784633253,-151.0,0.00017342,2]
[394618807,1763784633263,-151.0,0.00017342,2]
[394618808,1763784633272,-151.0,0.00017342,2]
[394618809,1763784633281,-151.0,0.00017342,2]
[394618810,1763784633290,-151.0,0.00017342,2]
[394618811,1763784633300,-151.0,0.00017342,2]
[394618812,1763784633309,-151.0,0.00017342,2]
[394618813,1763784633319,-151.0,0.00017342,2]
[394618814,1763784633329,-151.0,0.00017342,2]
[394618815,1763784633338,-151.0,0.00017342,2]
[394618816,1763784633348,-151.0,0.00017342,2]
[394618817,1763784633357,-151.0,0.00017342,2]
[394618818,1763784633367,-151.0,0.00017342,2]
[394618819,1763784633376,-151.0,0.00017342,2]
[394618820,1763784633385,-151.0,0.00017342,2]
[394618821,1763784633395,-151.0,0.00017342,2]
[394618822,1763784633404,-151.0,0.00017342,2]
[394618823,1763784633413,-234.194098,0.00017342,2]
[394618824,1763784633422,-234.194098,0.00017342,2]
[394618825,1763784633432,-234.194098,0.00017342,2]
[394618826,1763784633442,-234.194098,0.00017342,2]
[394618827,1763784633451,-600.0,0.00017343,2]
[394618828,1763784633461,-151.0,0.00017343,2]
[394618829,1763784633471,-151.0,0.00017343,2]
[394618830,1763784633481,-151.0,0.00017343,2]
[394618831,1763784633491,-151.0,0.00017343,2]
[394618832,1763784633501,-151.0,0.00017343,2]
[394618833,1763784633511,-151.0,0.00017343,2]
[394618834,1763784633525,-151.0,0.00017343,2]
[394618835,1763784633534,-151.0,0.00017343,2]
[394618836,1763784633544,-151.0,0.00017343,2]
[394618837,1763784633554,-151.0,0.00017343,2]
[394618838,1763784633566,-151.0,0.00017343,2]
[394618839,1763784633575,-151.0,0.00017343,2]
[394618840,1763784633584,-151.0,0.00017343,2]
[394618841,1763784633596,-151.0,0.00017382,2]
[394618842,1763784633606,-151.0,0.00017382,2]
[394618843,1763784633616,-151.0,0.00017382,2]
[394618844,1763784633626,-151.0,0.00017382,2]
[394618845,1763784633636,-234.949634,0.00017382,2]
[394618846,1763784633645,-1000.0,0.00017382,2]
[394618847,1763784633655,-2347.8114609,0.00017389,2]
[394618848,1763784633664,-410.29678599,0.00017389,2]
[394618849,1763784633673,-151.0,0.00017442,2]
[394618850,1763784633683,-234.194098,0.00017442,2]
[394618851,1763784633693,-234.194098,0.00017442,2]
[394618852,1763784633702,-125.94198312,0.00017442,2]
[394618853,1763784633714,-108.25211488,0.00017442,2]
[394618854,1763784633723,-234.194098,0.00017442,2]
[394618855,1763784633734,-150.0,0.00017443,2]
[394618856,1763784633743,-189.434,0.00017443,2]
[394618857,1763784633752,-71.66248499,0.00017443,2]
[394618858,1763784633768,-90.92051501,0.00017443,2]
[394618859,1763784633777,-210.465,0.00017443,2]
[394618860,1763784633787,-629.80347895,0.00017443,2]
[394618861,1763784633820,-689.19652105,0.00017443,2]
[394618862,1763784633830,-219.21097895,0.00017443,2]
[394618863,1763784633842,-389.78902105,0.00017443,2]
[394618864,1763784633851,-268.44328853,0.00017443,2]
[394618865,1763784633862,-307.55671147,0.00017443,2]
[394618866,1763784633872,-822.0,0.00017443,2]
[394618867,1763784633881,-1601.0,0.00017443,2]
[394618868,1763784633891,-1253.434,0.00017443,2]
[394618869,1763784633900,-908.0,0.00017443,2]
[394618870,1763784633910,-344.146818,0.00017443,2]
[394618871,1763784638095,-2659.0,0.00017443,2]
[394618872,1763784638107,-6497.0,0.00017443,2]
[394618873,1763784638118,-151.0,0.00017443,2]
[394618874,1763784638130,-151.0,0.00017443,2]
[394618875,1763784638141,-151.0,0.00017443,2]
[394618876,1763784638153,-301.460776,0.00017443,2]
[394618877,1763784638164,-151.0,0.00017443,2]
[394618878,1763784638175,-151.0,0.00017443,2]
[394618879,1763784638187,-151.0,0.00017443,2]
[394618880,1763784638199,-151.0,0.00017443,2]
[394618881,1763784638211,-151.0,0.00017443,2]
[394618882,1763784638222,-151.0,0.00017443,2]
[394618883,1763784638233,-151.0,0.00017443,2]
[394618884,1763784638244,-151.0,0.00017443,2]
[394618885,1763784638258,-151.0,0.00017443,2]
[394618886,1763784638269,-252.417451,0.00017443,2]
[394618887,1763784638281,-151.0,0.00017443,2]
[394618888,1763784638292,-151.0,0.00017443,2]
[394618889,1763784638304,-234.194098,0.00017443,2]
[394618890,1763784638316,-234.194098,0.00017443,2]
[394618891,1763784638327,-234.194098,0.00017443,2]
[394618892,1763784638338,-234.194098,0.00017443,2]
[394618893,1763784638350,-500.0,0.00017461,2]
[394618894,1763784638361,-500.0,0.00017461,2]
[394618895,1763784638372,-500.0,0.00017461,2]
[394618896,1763784638384,-500.0,0.00017461,2]
[394618897,1763784638395,-514.1897324,0.00017461,2]
[394618898,1763784638406,-500.0,0.00017461,2]
[394618899,1763784638417,-500.0,0.00017461,2]
[394618900,1763784638428,-500.0,0.00017461,2]
[394618901,1763784638439,-500.0,0.00017461,2]
[394618902,1763784638451,-500.0,0.00017461,2]
[394618904,1763784638466,-500.0,0.00017461,2]
[394618906,1763784638477,-500.0,0.00017461,2]
[394618909,1763784638488,-500.0,0.00017461,2]
[394618911,1763784638498,-500.0,0.00017461,2]
[394618913,1763784638510,-500.0,0.00017461,2]
[394618915,1763784638528,-500.0,0.00017461,2]
[394618917,1763784638539,-500.0,0.00017461,2]
[394618919,1763784638551,-500.0,0.00017461,2]
[394618922,1763784638564,-500.0,0.00017461,2]
[394618924,1763784638574,-500.0,0.00017461,2]
[394618926,1763784638585,-500.0,0.00017461,2]
[394618928,1763784638599,-500.0,0.00017461,2]
[394618930,1763784638609,-500.0,0.00017461,2]
[394618933,1763784638620,-500.0,0.00017461,2]
[394618936,1763784638641,-151.0,0.00017462,2]
[394618939,1763784638657,-168.105474,0.00017462,2]
[394618941,1763784638672,-906.0501746,0.00017462,2]
[394618950,1763784638742,-1441.7612863,0.00017462,2]
[394618952,1763784638755,-410.29678599,0.00017462,2]
[394618955,1763784638769,-426.67177017,0.00017489,2]
[394618957,1763784638782,-1988.81805857,0.00017535,2]
[394618995,1763784640159,-358.99340233,0.00017535,2]
[394618996,1763784640172,-151.0,0.00017535,2]
[394618997,1763784640186,-41.75701879,0.00017535,2]
[394618999,1763784643955,-109.24298121,0.00017535,2]
[394619000,1763784643966,-202.576228,0.00017535,2]
[394619001,1763784643976,-132.97579081,0.00017535,2]
[394619002,1763784644011,-18.02420919,0.00017535,2]
[394619003,1763784644021,-410.29678599,0.00017535,2]
[394619004,1763784644031,-2347.8114609,0.00017608,2]
[394619005,1763784644041,-95.37301796,0.00017608,2]
[394619009,1763784644069,-314.92376803,0.00017608,2]
[394619011,1763784644078,-600.0,0.00017617,2]
[394619012,1763784644088,-151.0,0.00017681,2]
[394619013,1763784644097,-2347.8114609,0.00017681,2]
[394619014,1763784644107,-410.29678599,0.00017681,2]
[394619015,1763784644116,-151.0,0.00017681,2]
[394619016,1763784644126,-151.0,0.00017681,2]
[394619017,1763784644136,-151.0,0.00017681,2]
[394619018,1763784644146,-151.0,0.00017681,2]
[394619020,1763784644155,-234.194098,0.00017681,2]
[394619022,1763784644165,-234.194098,0.00017681,2]
[394619024,1763784644174,-234.194098,0.00017681,2]
[394619027,1763784644183,-234.194098,0.00017681,2]
[394619030,1763784644192,-151.0,0.00017754,2]
[394619031,1763784644202,-2347.8114609,0.00017754,2]
[394619032,1763784644211,-410.29678599,0.00017754,2]
[394619033,1763784644221,-2347.8114609,0.00017827,2]
[394619034,1763784644230,-410.29678599,0.00017827,2]
[394619035,1763784644240,-151.0,0.00017856,2]
[394619036,1763784644250,-151.0,0.00017856,2]
[394619037,1763784644259,-151.0,0.00017856,2]
[394619038,1763784644269,-500.0,0.00017856,2]
[394619039,1763784644278,-200.0,0.00017856,2]
[394619040,1763784644289,-600.0,0.00017891,2]
[394619041,1763784644298,-9061.02567271,0.000179,2]
[394619042,1763784644311,-938.97432729,0.000179,2]
[394619043,1763784644321,-156.865552,0.000179,2]
[394619044,1763784644331,-230.996706,0.000179,2]
[394619045,1763784644341,-151.0,0.000179,2]
[394619046,1763784644352,-151.0,0.000179,2]
[394619047,1763784644365,-151.0,0.000179,2]
[394619048,1763784644375,-151.0,0.000179,2]
[394619049,1763784644387,-57.03765788,0.000179,2]
[394619050,1763784644398,-333.03755441,0.000179,2]
[394619051,1763784644419,-478.06989077,0.000179,2]
[394619052,1763784644431,-1479.66635784,0.000179,2]
[394619053,1763784644440,-410.29678599,0.000179,2]
[394619054,1763784644450,-208.14193171,0.000179,2]
[394619055,1763784644459,-2134.4103073,0.000179,2]
[394619056,1763784644469,-150.0,0.00017924,2]
[394619057,1763784644479,-1280.5361617,0.00017926,2]
[394619058,1763784644488,-589.97659601,0.00017973,2]
[394619059,1763784644498,-500.0,0.00017973,2]
[394619060,1763784644507,-500.0,0.00017973,2]
[394619061,1763784644522,-500.0,0.00017973,2]
[394619062,1763784644532,-228.237708,0.00017989,2]
[394619063,1763784644541,-500.0,0.00017993,2]
[394619064,1763784644551,-211.4994424,0.00017999,2]
[394619065,1763784644563,-252.09501776,0.00017999,2]
[394619066,1763784644573,-540.04091065,0.00017999,2]
[394619067,1763784644583,-2308.0,0.00018,2]
[394619068,1763784644597,-28328.74120161,0.00018,2]
[394619071,1763784646294,-1001.85872633,0.00018,2]
[394619072,1763784646401,-1434.61950838,0.00018,2]
[394619073,1763784646457,-546.752,0.00018,2]
[394619074,1763784646471,-455.95,0.00018,2]
[394619075,1763784646482,-913.15366585,0.00018,2]
[394619076,1763784646511,-179577.65094044,0.00018,2]
[394619077,1763784646527,-614.0905448,0.00018,2]
[394619078,1763784646567,-1155.51975,0.00018,2]
[394619086,1763785173022,903.3,0.00013699,2]
[394619087,1763785308008,1000.0,0.00022,30]
[394619090,1763785560015,6398.86,8e-05,2]
[394619091,1763785560040,3607.45995974,8e-05,2]
[394619106,1763785831575,-166.66,0.00016103,2]
[394619107,1763785831585,-300.0,0.00016199,2]
[394619108,1763785831595,-300.0,0.00016199,2]
[394619110,1763785831604,-1200.0,0.00016199,2]
[394619112,1763785831614,-150.0,0.000162,2]
[394619114,1763785831623,-150.0,0.000162,2]
[394619116,1763785831633,-150.0,0.000162,2]
[394619118,1763785831642,-150.0,0.000162,2]
[394619120,1763785831651,-150.0,0.000162,2]
[394619121,1763785831661,-150.0,0.000162,2]
[394619122,1763785831674,-150.0,0.000162,2]
[394619123,1763785831684,-150.0,0.000162,2]
[394619124,1763785831695,-150.0,0.000162,2]
[394619125,1763785831704,-150.83857248,0.000162,2]
[394619126,1763785831715,-150.0,0.000162,2]
[394619127,1763785831724,-150.50740983,0.000162,2]
[394619128,1763785831733,-150.0,0.0001635,2]
[394619129,1763785831743,-150.0,0.0001638,2]
[394619130,1763785831752,-999.0,0.00016409,3]
[394619131,1763785831761,-2232.21,0.00016438,2]
[394619132,1763785831771,-166.66,0.00016442,2]
[394619133,1763785831780,-150.0,0.00016457,2]
[394619134,1763785831789,-150.0,0.000165,2]
[394619135,1763785831800,-150.0,0.000165,2]
[394619136,1763785831810,-150.0,0.000165,2]
[394619137,1763785831819,-150.0,0.000165,2]
[394619138,1763785831829,-150.0,0.0001656,2]
[394619139,1763785831838,-150.0,0.0001656,2]
[394619140,1763785831848,-150.0,0.0001656,2]
[394619141,1763785831857,-150.0,0.0001665,2]
[394619142,1763785831871,-1600.0,0.00016677,2]
[394619143,1763785831881,-150.0,0.00016714,2]
[394619144,1763785831891,-150.0,0.0001674,2]
[394619145,1763785831901,-166.66,0.00016781,2]
[394619146,1763785831910,-150.0,0.000168,2]
[394619147,1763785831921,-150.0,0.000168,2]
[394619148,1763785831931,-150.0,0.000168,2]
[394619149,1763785831942,-150.0,0.000168,2]
[394619150,1763785831953,-150.0,0.000168,2]
[394619151,1763785831963,-150.0,0.0001692,2]
[394619152,1763785831975,-150.0,0.0001692,2]
[394619153,1763785831986,-150.0,0.0001692,2]
[394619154,1763785831995,-150.0,0.0001695,2]
[394619155,1763785832009,-150.0,0.00016971,2]
[394619156,1763785832030,-250.0,0.00017,2]
[394619157,1763785832053,-578.20924308,0.00017099,2]
[394619158,1763785832066,-150.0,0.000171,2]
[394619159,1763785832076,-150.0,0.000171,2]
[394619160,1763785832085,-150.0,0.000171,2]
[394619161,1763785832098,-150.0,0.000171,2]
[394619162,1763785832108,-150.0,0.000171,2]
[394619163,1763785832118,-150.0,0.000171,2]
[394619164,1763785832129,-166.66,0.0001712,2]
[394619165,1763785832139,-264.37836761,0.00017129,2]
[394619166,1763785832148,-3747.59546243,0.00017132,2]
[394619167,1763785832168,-18132.16043757,0.00017132,2]
[394619168,1763785832178,-163.781,0.00017173,2]
[394619169,1763785832187,-721.12765535,0.00017222,2]
[394619170,1763785832197,-500.0,0.00017222,2]
[394619171,1763785832207,-500.0,0.00017222,2]
[394619172,1763785832216,-3000.0,0.00017222,2]
[394619173,1763785832226,-475.70981304,0.00017222,2]
[394619174,1763785832236,-3000.0,0.00017222,2]
[394619175,1763785832246,-2012.8167965,0.00017222,2]
[394619176,1763785832255,-5000.0,0.00017222,2]
[394619177,1763785832264,-5000.0,0.00017222,2]
[394619178,1763785832274,-5000.0,0.00017222,2]
[394619179,1763785832283,-5000.0,0.00017222,2]
[394619180,1763785832295,-5000.0,0.00017222,2]
[394619181,1763785832305,-5000.0,0.00017222,2]
[394619182,1763785832622,-5000.0,0.00017222,2]
[394619183,1763785832702,-5000.0,0.00017222,2]
[394619184,1763785832715,-5000.0,0.00017222,2]
[394619185,1763785832725,-5000.0,0.00017222,2]
[394619186,1763785832734,-5000.0,0.00017222,2]
[394619187,1763785832744,-150.0,0.00017229,2]
[394619188,1763785832756,-151.0,0.0001723,2]
[394619189,1763785832766,-151.0,0.0001723,2]
[394619190,1763785832777,-495.695,0.00017231,2]
[394619191,1763785832786,-300.0,0.00017231,2]
[394619192,1763785832795,-300.0,0.00017231,2]
[394619193,1763785832805,-600.0,0.00017232,2]
[394619194,1763785832814,-150.0,0.0001725,2]
[394619195,1763785832824,-163.781,0.00017254,2]
[394619196,1763785832833,-300.0,0.00017272,2]
[394619197,1763785832843,-150.0,0.0001728,2]
[394619198,1763785832854,-150.0,0.0001728,2]
[394619199,1763785832864,-150.0,0.0001728,2]
[394619200,1763785832874,-202.47243292,0.00017295,2]
[394619201,1763785832884,-163.781,0.00017335,2]
[394619202,1763785832894,-150.0,0.000174,2]
[394619203,1763785832904,-150.0,0.000174,2]
[394619204,1763785832915,-150.0,0.000174,2]
[394619205,1763785832926,-150.0,0.000174,2]
[394619206,1763785832935,-150.0,0.000174,2]
[394619207,1763785832947,-163.781,0.00017415,2]
[394619208,1763785832957,-166.66,0.00017459,2]
[394619209,1763785832966,-150.0,0.0001746,2]
[394619210,1763785832978,-767.144,0.00017478,2]
[394619211,1763785832987,-1192.0,0.00017478,2]
[394619212,1763785832997,-908.0,0.00017478,2]
[394619213,1763785833006,-576.0,0.00017478,2]
[394619214,1763785833017,-2659.0,0.00017478,2]
[394619215,1763785833027,-150.0,0.00017486,2]
[394619216,1763785833036,-426.67177017,0.00017494,2]
[394619217,1763785833048,-163.781,0.00017496,2]
[394619218,1763785833058,-2000.0,0.000175,2]
[394619219,1763785833067,-600.0,0.00017506,2]
[394619220,1763785833081,-150.0,0.0001755,2]
[394619221,1763785833090,-163.781,0.00017577,2]
[394619222,1763785833100,-150.0,0.0001764,2]
[394619223,1763785833110,-150.0,0.0001764,2]
[394619224,1763785833120,-150.0,0.0001764,2]
[394619225,1763785833130,-163.781,0.00017658,2]
[394619226,1763785833139,-150.0,0.000177,2]
[394619227,1763785833148,-150.0,0.000177,2]
[394619228,1763785833158,-150.0,0.000177,2]
[394619229,1763785833167,-150.0,0.000177,2]
[394619230,1763785833177,-420.0,0.00017707,2]
[394619231,1763785833186,-151.0,0.00017713,2]
[394619232,1763785833196,-151.0,0.00017713,2]
[394619233,1763785833205,-300.0,0.00017713,2]
[394619234,1763785833215,-250.0,0.00017713,2]
[394619235,1763785833225,-300.0,0.00017713,2]
[394619236,1763785833236,-163.781,0.00017738,2]
[394619237,1763785833246,-150.0,0.00017743,2]
[394619238,1763785833256,-600.0,0.0001778,2]
[394619239,1763785833266,-816.0,0.00017796,2]
[394619240,1763785833279,-166.66,0.00017798,2]
[394619241,1763785833289,-163.781,0.00017819,2]
[394619242,1763785833301,-150.0,0.0001782,2]
[394619243,1763785833310,-168.0,0.00017825,2]
[394619244,1763785833321,-150.0,0.0001785,2]
[394619245,1763785833331,-500.0,0.00017856,2]
[394619246,1763785833341,-701.6816,0.000179,2]
[394619247,1763785833351,-163.781,0.000179,2]
[394619248,1763785833361,-168.0,0.0001795,2]
[394619249,1763785833371,-168.0,0.00017966,2]
[394619250,1763785833380,-500.0,0.00017973,2]
[394619251,1763785833390,-151.0,0.00017989,2]
[394619252,1763785833401,-164.454298,0.00017989,2]
[394619253,1763785833410,-151.0,0.00017989,2]
[394619254,1763785833420,-500.0,0.00017993,2]
[394619255,1763785833429,-150.0,0.00017993,2]
[394619256,1763785833439,-1000.0,0.00017999,2]
[394619257,1763785833448,-612.367,0.00017999,2]
[394619258,1763785833458,-1000.0,0.00017999,2]
[394619259,1763785833471,-1000.0,0.00017999,2]
[394619260,1763785833481,-1000.0,0.00017999,2]
[394619261,1763785833490,-437.657,0.00017999,2]
[394619262,1763785833499,-378.02863745,0.00017999,2]
[394619263,1763785833508,-176.46651243,0.00017999,2]
[394619264,1763785833518,-2253.0,0.00018,2]
[394619265,1763785833527,-150.0,0.00018,2]
[394619266,1763785833536,-150.0,0.00018,2]
[394619267,1763785833546,-150.0,0.00018,2]
[394619268,1763785833555,-150.0,0.00018,2]
[394619269,1763785833564,-151.69825373,0.00018,2]
[394619270,1763785833573,-150.0,0.00018,2]
[394619271,1763785833582,-152.20025882,0.00018,2]
[394619272,1763785833592,-152.82537806,0.00018,2]
[394619273,1763785833601,-150.0,0.00018,2]
[394619274,1763785833610,-152.31634493,0.00018,2]
[394619275,1763785833619,-119428.56084817,0.00018,2]
[394619276,1763785833632,-397.62,0.00018,2]
[394619277,1763785833643,-712.17874627,0.00018,2]
[394619278,1763785833659,-633.49960292,0.00018,2]
[394619279,1763785833703,-252.51979189,0.00018,2]
[394619280,1763785837316,-500.0,0.00017229,2]
[394619281,1763785837327,-500.0,0.00017229,2]
[394619282,1763785837336,-500.0,0.00017229,2]
[394619283,1763785837346,-500.0,0.00017229,2]
[394619285,1763785837356,-500.0,0.00017229,2]
[394619286,1763785837365,-500.0,0.00017229,2]
[394619287,1763785837375,-500.0,0.00017229,2]
[394619288,1763785837385,-500.0,0.00017229,2]
[394619289,1763785837395,-500.0,0.00017229,2]
[394619290,1763785837405,-500.0,0.00017229,2]
[394619291,1763785837415,-500.0,0.00017229,2]
[394619292,1763785837424,-500.0,0.00017229,2]
[394619293,1763785837434,-500.0,0.00017229,2]
[394619294,1763785837443,-500.0,0.00017229,2]
[394619295,1763785837452,-500.0,0.00017229,2]
[394619296,1763785837462,-500.0,0.00017229,2]
[394619297,1763785837472,-536.41897325,0.00017229,2]
[394619298,1763785837482,-1319.0,0.00017478,2]
[394619299,1763785837491,-1019.58706069,0.00018,2]
[394619300,1763785837505,-1563.61745328,0.00018,2]
[394619301,1763785837516,-696.74,0.00018,2]
[394619392,1763785840015,-487.765501,0.00017132,2]
[394619393,1763785840041,-12659.61959999,0.00017132,2]
[394619394,1763785840053,-2020.03981873,0.00017132,2]
[394619395,1763785840064,-1088.94000001,0.00017132,2]
[394619396,1763785840075,-1690.66002,0.00017132,2]
[394619397,1763785840086,-918.085566,0.00017132,2]
[394619398,1763785840105,-39246.54463525,0.00017132,2]
[394619399,1763785840117,-7973.33798361,0.00017132,2]
[394619400,1763785840147,-4559.51605032,0.00017132,2]
[394619401,1763785840158,-7665.44359154,0.00017132,2]
[394619405,1763785840188,-1173.22049338,0.00017132,2]
[394619417,1763785844565,-13334.6791496,0.00017132,2]
[394619421,1763785845648,-3180.21179166,0.00017132,2]
[394619422,1763785845703,-2577.5356243,0.00017132,2]
[394619443,1763787032167,-250.0,0.0001628,2]
[394619444,1763787032178,-714.35200424,0.00016281,2]
[394619445,1763787032207,-2036.64799576,0.00016281,2]
[394619446,1763787032219,-1000.0,0.00016694,2]
[394619447,1763787032229,-3015.39,0.0001679,2]
[394619448,1763787032239,-200.0,0.00016882,2]
[394619449,1763787032250,-925.2,0.00016982,2]
[394619450,1763787032259,-209.79454154,0.00016997,2]
[394619451,1763787032269,-505.44,0.00016999,2]
[394619452,1763787032280,-500.0,0.00016999,2]
[394619453,1763787032290,-500.0,0.00016999,2]
[394619454,1763787032300,-864.27,0.00016999,2]
[394619455,1763787032313,-500.0,0.00016999,2]
[394619456,1763787032322,-500.0,0.00016999,2]
[394619457,1763787032331,-500.0,0.00016999,2]
[394619458,1763787032341,-500.0,0.00016999,2]
[394619459,1763787032351,-500.0,0.00016999,2]
[394619460,1763787032360,-500.0,0.00016999,2]
[394619461,1763787032369,-500.0,0.00016999,2]
[394619462,1763787032379,-500.0,0.00016999,2]
[394619463,1763787032389,-500.0,0.00016999,2]
[394619464,1763787032398,-891.75,0.00016999,2]
[394619465,1763787032409,-500.0,0.00016999,2]
[394619466,1763787032418,-500.0,0.00016999,2]
[394619467,1763787032433,-10115.48,0.00016999,2]
[394619468,1763787032443,-500.0,0.00016999,2]
[394619469,1763787032453,-500.0,0.00016999,2]
[394619470,1763787032463,-500.0,0.00016999,2]
[394619471,1763787032474,-500.0,0.00016999,2]
[394619472,1763787032483,-500.0,0.00016999,2]
[394619473,1763787032493,-500.0,0.00016999,2]
[394619474,1763787032503,-500.0,0.00016999,2]
[394619475,1763787032513,-500.0,0.00016999,2]
[394619476,1763787032524,-500.0,0.00016999,2]
[394619477,1763787032534,-500.0,0.00016999,2]
[394619478,1763787032544,-500.0,0.00016999,2]
[394619479,1763787032553,-500.0,0.00016999,2]
[394619480,1763787032564,-264.62004622,0.00016999,2]
[394619481,1763787032574,-500.0,0.00016999,2]
[394619482,1763787032584,-448.49099703,0.00016999,2]
[394619483,1763787032604,-198570.74936681,0.00017,2]
[394619484,1763787032625,-89824.02487891,0.00017,2]
[394619485,1763787032638,-38210.66475428,0.00017,2]
[394619486,1763787032647,-165.14826944,0.00017032,2]
[394619487,1763787032658,-171.11776278,0.00017032,2]
[394619488,1763787032667,-1000.0,0.00017032,2]
[394619489,1763787032677,-578.20924308,0.00017099,2]
[394619490,1763787032688,-396.556,0.00017099,2]
[394619491,1763787032698,-67453.9828155,0.000171,2]
[394619492,1763787032711,-44908.4288248,0.000171,2]
[394619493,1763787032723,-1500.0,0.00017122,2]
[394619494,1763787032735,-5000.0,0.00017122,2]
[394619495,1763787032745,-721.12765535,0.00017122,2]
[394619496,1763787032755,-5000.0,0.00017122,2]
[394619497,1763787032764,-5000.0,0.00017122,2]
[394619498,1763787032774,-1937.35868453,0.00017122,2]
[394619499,1763787032784,-431.74798655,0.00017122,2]
[394619500,1763787032793,-574.12855637,0.00017122,2]
[394619501,1763787032803,-500.0,0.00017122,2]
[394619502,1763787032817,-500.0,0.00017122,2]